Cogmind - Beta 14 @@@ ROGUE MODE // 2024.10.16 @ 19:00:38 Player: pd-p0l Result: Destroyed by D-53 Grenadier with Mini Grenade Launcher Performance ------------- Evolutions (0) 0 Regions Visited (2) 400 Robots Destroyed (17) 85 Value Destroyed (363) 363 Prototype IDs (0) 0 Alien Tech Used (0) 0 Bonus (0) 0 TOTAL SCORE: 848 Bonus ------- None Cogmind --------- Core Integrity 0/250 Matter 300/300 Energy 98/100 System Corruption 0% Temperature Cool (0) Movement Core (50) Location -10/Mines Parts ------- > --- POWER (1) -------- (None) > --- PROPULSION (2) --- (None) > --- UTILITY (2) ------ (None) > --- WEAPON (2) ------- (None) > --- INVENTORY (5) ---- Light Ion Engine Heat Sink Huge Storage Unit Beam Cannon Beam Cannon Peak State ------------ > --- POWER ------------ Nuclear Core > --- PROPULSION ------- Aluminum Leg Carbon-fiber Leg > --- UTILITY ---------- Small Storage Unit Weapon Shielding > --- WEAPON ----------- Beam Cannon Ion Cannon > --- INVENTORY -------- Ion Engine Light Ion Engine Huge Storage Unit Beam Cannon Grenade Launcher Grenade Launcher Rocket Launcher Mining Laser [Rating: 13] Favorites ----------- Power Nuclear Core Engine Ion Engine Power Core Nuclear Core Propulsion Aluminum Leg Leg Aluminum Leg Utility Small Storage Unit Storage Small Storage Unit Protection Weapon Shielding Weapon Beam Cannon Energy Gun Medium Laser Energy Cannon Beam Cannon Ballistic Gun Assault Rifle Launcher Grenade Launcher Special Weapon Mining Laser Build | -11 -10 -10 ------- Run | Yrd Mat Min Slots Evolved . | . . . Power . | . . . Propulsion . | . . . Utility . | . . . Weapon . | . . . Parts Attached 20 | 6 2 12 Power 3 | 1 . 2 Engine 2 | 1 . 1 Core 1 | . . 1 Reactor . | . . . Propulsion 6 | 2 . 4 Treads . | . . . Leg 6 | 2 . 4 Wheel . | . . . Hover . | . . . Flight . | . . . Utility 2 | 1 . 1 Device . | . . . Storage 1 | 1 . . Processor . | . . . Hackware . | . . . Protection 1 | . . 1 Artifact . | . . . Weapon 9 | 2 2 5 Energy Gun 1 | 1 . . Energy Cannon 4 | . 2 2 Ballistic Gun 1 | 1 . . Ballistic Cannon . | . . . Launcher 1 | . . 1 Special Weapon 2 | . . 2 Impact Weapon . | . . . Slashing Weapon . | . . . Piercing Weapon . | . . . Special Melee Weapon . | . . . Unidentified Prototypes . | . . . Parts Lost 9 | . . 9 Power 2 | . . 2 Propulsion 2 | . . 2 Utility 2 | . . 2 Weapon 3 | . . 3 Highest Loss Streak 7 | . . 7 To Critical Strikes . | . . . Average Slot Usage (%) 92 | . 85 93 Engine 5 | . 14 3 Core 8 | . . 10 Leg 26 | . 28 26 Storage 13 | . 14 13 Protection 9 | . . 11 Energy Cannon 16 | . 18 15 Launcher 1 | . . 2 Special Weapon 7 | . . 8 Peak Build Rating 13 | 6 6 13 Average Rating 9 | 3 6 10 On Entrance 4 | . 6 6 Naked Turns 15 | . . 15 Heaviest Build 20 | 14 16 20 Greatest Support 25 | 20 20 25 Greatest Overweight (x) 3 | 2 . 3 Average Overweight (x) . | . . . Largest Inventory Capacity 8 | 8 8 8 Average Capacity 7 | 6 8 7 Most Carried 8 | 5 8 8 Average Carried 7 | 2 6 7 Final Capacity 8 | 8 8 5 Final Carried 8 | 2 8 5 Class Distribution -------------------- 100% | Mutant Dominant Class ---------------- Mutant | -10/Materials Mutant | -10/Mines Resources | -11 -10 -10 ----------- Run | Yrd Mat Min Matter Collected 455 | 195 82 178 Remotely . | . . . Salvage Created 333 | . 134 199 Parts 23 | . 11 12 Haulers Intercepted . | . . . Recyclers Shooed . | . . . Parts Field Recycled . | . . . Retrieved Matter . | . . . Parts Self-Destructed . | . . . Prevented . | . . . Kills | -11 -10 -10 ------- Run | Yrd Mat Min Combat Hostiles Destroyed 20 | . 5 15 Cannons 14 | . 5 9 AOE 6 | . . 6 Classes Destroyed 3 | . 2 1 Swarmer 11 | . 3 8 Grunt 6 | . 2 4 Assembled 3 | . . 3 Best Kill Streak 5 | . 3 5 Combat Bots Only 5 | . 3 5 Max Kills in Single Turn 2 | . 2 2 Gunslinging . | . . . Exploded 2 | . . 2 Melee . | . . . Uniques/NPCs Destroyed . | . . . Combat | -11 -10 -10 -------- Run | Yrd Mat Min Hostile Shots Fired 94 | . 16 78 Missed 19 | . 3 16 Damage Taken 1207 | . 124 1083 Core 287 | . 21 266 Absorbed by Shields . | . . . Redirected to Shielding 52 | . . 52 Core Remaining (%) 100 | 100 . . Volleys Fired 44 | . 8 36 Largest 2 | . 2 2 Hottest 160 | . 120 160 Shots Fired 72 | . 16 56 Gun . | . . . Cannon 61 | . 16 45 Launcher 5 | . . 5 Special 6 | . . 6 Kinetic . | . . . Thermal 67 | . 16 51 Explosive 5 | . . 5 Electromagnetic . | . . . Robot Hit Streak 9 | . 2 9 Robot Miss Streak 3 | . 2 3 Penetration Max . | . . . Secondary Targets . | . . . Shots Hit Robots 34 | . 6 28 Core Hits 25 | . 6 19 Critical Kills . | . . . Critical Parts Destroyed . | . . . Critical Strikes . | . . . Melee Attacks . | . . . Impact . | . . . Slashing . | . . . Piercing . | . . . Sneak Attacks . | . . . Combat Hostiles . | . . . Follow-up Attacks . | . . . Damage Inflicted 1044 | . 123 921 Guns . | . . . Cannons 562 | . 122 440 Explosions 356 | . . 356 Melee . | . . . Ramming 6 | . 1 5 Kinetic . | . . . Thermal 682 | . 122 560 Explosive 356 | . . 356 Electromagnetic . | . . . Impact . | . . . Slashing . | . . . Piercing . | . . . Highest Corruption . | . . . Average Corruption . | . . . Corruption Purged . | . . . Corruption Blocked . | . . . Overload Shots . | . . . Overflow Damage 9 | . . 9 Projectiles 8 | . . 8 Explosions 1 | . . 1 Melee . | . . . Knockbacks . | . . . Impact . | . . . Kinetic . | . . . Secondary . | . . . Self-Inflicted Damage 39 | . . 39 Shots 1 | . . 1 Rammed . | . . . Targets Rammed 3 | . 1 2 Kicked 3 | . 1 2 Crushed . | . . . Highest Temperature 549 | . 270 549 Average Temperature 159 | . 130 167 Received Heat Transfer 246 | . 30 216 Effects 12 | . . 12 Shutdowns 2 | . . 2 Energy Bleed 1 | . . 1 Interference 4 | . . 4 Matter Decay 1 | . . 1 Short Circuit 3 | . . 3 Damage (major) 1 | . . 1 Siege Activations . | . . . Robots Corrupted . | . . . Combat Hostiles . | . . . Parts Fried . | . . . Impact Corruptions . | . . . Robots Melted . | . . . Combat Hostiles . | . . . Parts Melted . | . . . Heat Transferred 1286 | . 259 1027 Parts Sabotaged . | . . . Parts Stolen . | . . . Parts Stripped . | . . . Power Chain Reactions . | . . . Alert | -11 -10 -10 ------- Run | Yrd Mat Min Peak Influence 209 | . 150 209 Initial 58 | . . 58 Average 94 | . 78 103 Maximum Alert Level 1 | . . 1 Low Security (%) 97 | 100 100 96 Level 1 2 | . . 3 Level 2 . | . . . Level 3 . | . . . Level 4 . | . . . Level 5 . | . . . High Security . | . . . Max Security . | . . . Squads Dispatched 2 | . 1 1 Investigation 1 | . . 1 Extermination . | . . . Reinforcement 1 | . 1 . Assault . | . . . Garrison . | . . . Intercept . | . . . Searches Triggered . | . . . Construction Impeded . | . . . Haulers Reinforced . | . . . Active Scanning Responses . | . . . Cargo Convoy Interrupts . | . . . Stealth | -11 -10 -10 --------- Run | Yrd Mat Min Distress Signals . | . . . Communications Jammed . | . . . Distress Signals . | . . . Times Spotted 29 | . 8 21 Peak Tracking Total 12 | . 3 12 Tactical Retreats 3 | . . 3 Traps | -11 -10 -10 ------- Run | Yrd Mat Min Traps Triggered . | . . . Indirectly . | . . . Trap Hack Attempts . | . . . Triggered . | . . . Disarmed . | . . . Reprogrammed . | . . . Reused . | . . . Traps Extracted . | . . . Installed . | . . . Triggered . | . . . Machines | -11 -10 -10 ---------- Run | Yrd Mat Min Machines Disabled 1 | . 1 . Max in Single Turn 1 | . 1 . Machines Repaired . | . . . Machines Dismantled . | . . . Machines Sabotaged . | . . . Overloaded Fab Kills . | . . . Hacking | -11 -10 -10 --------- Run | Yrd Mat Min Machines Accessed 3 | . 1 2 Terminals 2 | . 1 1 Fabricators . | . . . Repair Stations . | . . . Recycling Units . | . . . Scanalyzers . | . . . Garrison Access . | . . . Total Hacks 3 | . 1 2 Successful 3 | . 1 2 Failed . | . . . Catastrophic . | . . . Database Lockouts . | . . . Manual . | . . . Terminals 2 | . 1 1 Fabricators . | . . . Repair Stations . | . . . Recycling Units . | . . . Scanalyzers . | . . . Garrison Access . | . . . Terminal Hacks 3 | . 1 2 Open Door 1 | . . 1 Dispatch Records 1 | . . 1 Maintenance Status 1 | . 1 . Fabricator Hacks . | . . . Repair Station Hacks . | . . . Recycling Unit Hacks . | . . . Scanalyzer . | . . . Garrison Access Hacks . | . . . Unauthorized Hacks . | . . . Terminals . | . . . Fabricators . | . . . Repair Stations . | . . . Recycling Units . | . . . Scanalyzers . | . . . Garrison Access . | . . . Data Cores Recovered . | . . . Used . | . . . Hacking Detections . | . . . Full Trace Events . | . . . Feedback Events . | . . . Feedback Blocked . | . . . Robot Schematics Acquired . | . . . Robots Built . | . . . Authchips . | . . . Time . | . . . Total Robot Build Rating . | . . . Part Schematics Acquired . | . . . Parts Built . | . . . Authchips . | . . . Time . | . . . Total Part Build Rating . | . . . Parts Repaired . | . . . Time . | . . . Parts Recycled . | . . . Recycled Matter . | . . . Retrieved Matter . | . . . Retrieved Components . | . . . Parts Scanalyzed . | . . . Part Schematics Acquired . | . . . Parts Damaged . | . . . Bothacking | -11 -10 -10 ------------ Run | Yrd Mat Min Used RIF Installer . | . . . Robots Hacked . | . . . Non-combat . | . . . Combat . | . . . Robot Hacks Applied . | . . . Relay Couplers Released . | . . . Fabnet Peak Effective % . | . . . Robots Rewired . | . . . Allies Hacked . | . . . Hacks Repelled . | . . . Allies | -11 -10 -10 -------- Run | Yrd Mat Min Total Allies . | . . . Largest Group . | . . . Highest-Rated Group . | . . . Highest-Rated Ally . | . . . Total Orders . | . . . Ally Attacks . | . . . Total Damage . | . . . Kills . | . . . Allies Corrupted . | . . . Allies Melted . | . . . Intel | -11 -10 -10 ------- Run | Yrd Mat Min Robot Analysis Total . | . . . Derelict Logs Recovered 1 | . . 1 Drone Launches . | . . . Drone Recoveries . | . . . Exploration | -11 -10 -10 ------------- Run | Yrd Mat Min Turns Passed 986 | 47 151 788 Spaces Moved 650 | 34 94 522 Core 51 | 19 . 32 Treads . | . . . Legs 599 | 15 94 490 Wheels . | . . . Hover . | . . . Flight . | . . . Fastest Speed 50 | 50 120 50 Average Speed 117 | 97 120 118 Slowest Speed 200 | 150 120 200 Overloaded Moves . | . . . Propulsion Burnouts . | . . . Robots Hopped . | . . . Cave-ins Triggered . | . . . Exploration Rate (%) 33 | 3 21 76 Regions Visited 2 Branch Regions 1 Pre-discovered Areas 1 | . . 1 Known Exits Taken . | . . . Unknown Exits Taken 2 | 1 1 . Scrap Searched . | . . . Spaces Dug 1 | . . 1 Terrain Destroyed 40 | . . 40 Melee . | . . . Projectile 5 | . . 5 AOE 35 | . . 35 Terrain Rammed . | . . . Walls Destroyed . | . . . Machines Disabled . | . . . Actions | -11 -10 -10 --------- Run | Yrd Mat Min Total 788 | 49 116 623 Wait 37 | . . 37 Move 648 | 33 93 522 Hop . | . . . Pick Up 26 | 9 9 8 Fast Attach . | . . . Attach 12 | 6 . 6 Detach . | . . . Swap 8 | . 2 6 Drop 10 | 1 3 6 Fire 44 | . 8 36 Melee . | . . . Ram . | . . . Kick 3 | . 1 2 Crush . | . . . Escape Stasis . | . . . Rewire . | . . . Trap . | . . . Miscellaneous . | . . . Route ------- -11/Scrapyard -10/Materials -10/Mines History --------- Turn | Location | Event 4 | -11/Scrapyard | Discovered new exit (range 14) 48 | -11/Scrapyard | Entered Materials 178 | -10/Materials | Discovered new exit (range 15) 199 | -10/Materials | Entered Mines 200 | -10/Mines | Learned location of Storage (-7) 238 | -10/Mines | Met a Derelict shopkeep closing up shop 314 | -10/Mines | Build established: Mutant 377 | -10/Mines | Learned 4 Materials zone layouts 425 | -10/Mines | Received a Rocket Launcher from a helpful Derelict 888 | -10/Mines | Assembled infested the area 944 | -10/Mines | Core integrity fell below 50% 955 | -10/Mines | Core integrity fell below 20% 987 | -10/Mines | Destroyed by D-53 Grenadier with Mini Grenade Launcher Last Messages --------------- Demolisher response squad. Kicked T-07 Excavator out of the way. Kicked T-07 Excavator. as-43710 sneak attacks. T-07 Excavator destroyed. as-06751 destroyed. as-43710 destroyed. Weapon Shielding destroyed. as-36279 destroyed. K-01 Serf destroyed. U-05 Engineer destroyed. Aluminum Leg destroyed. as-35639 sneak attacks. T-07 Excavator destroyed. Ion Cannon destroyed. Grenade Launcher destroyed. Aluminum Leg destroyed. Sml. Storage Unit destroyed. Ion Engine destroyed. The unstable cave ceiling collapses. Map ----- +----------------------------------------------------+ | | | | | | | | | | | | | | | | | | | | | | | | | | | | | | | | | | | | | ???????????????????###???????????????????????????? | | ?????????????????### ########??????????????####### | | ??????######????## #?????????????## # | | ???#### ?##### ! = ! ############### | | ??## ?#== a %= !%!%%%[* | | ??# #?#!%# a | #% = ############### ### | | ??# ### !## #??????????????#####?# | | ???# """ ## ### ## @ ##????????????????????# | | ???## """ #?## #### ##?????????????????????# | | ????# """ ## #??####??# #??????????????????????? | | ???## ### #????????#d#??????????????????????? | | ??## ##?# #????????# #????????????????####?## | | ??# # #??# #???????? r????????????????#"[###* | | ??# # #??# #???????? =????????????????#"! /#X | | ??# ## #### #???????? ????????????????#"! [ | | ### ## ## #???????? ????????????????#"! | | ## ##???????? ????????????????#"== # | | ]# ##????????? ????????????????#" ### | | ##] ##??????????# ????????????????##### | | # ##????????????#u???????????????????## | | # ##?????????????? ??????????????###### | | # #??????????????? ??????????????# | | #??????????????? ?????????????# | | #?????????????????????????????# | | ### ##?????????????????????????????## | | ??# ##???????????????????????????????######### | | ??## ##????????????????????????????????????????? | | ???#####?????????????????????????????????????????? | | ?????????????????????????????????????????######### | | ?????????????????????????????????????????# | | ?????????????????????????????????????????# | | ?????????????????????????????????????????# #### | +----------------------------------------------------+ Best States ------------- Heat Dissipation 25 Energy Generation 14 Energy Capacity 250 Matter Stores 300 Matter Capacity 300 Sight Range 16 Terrain Scan Density 10 Weapon Shielding 33 Evasion (%) 55 Item Schematics ----------------- None Robot Schematics ------------------ None Fabricated ------------ Nothing Alien Tech Used ----------------- None Achievements -------------- None Challenges ------------ None Game ------ Seed WaveDynamicRedistributor Manual? 0 Play Time 00:24:25 Cumulative 5.8 hours Start 2024.10.16 @ 18:36:06 End 2024.10.16 @ 19:00:38 Sessions 1 Manual Loads 0 Difficulty Rogue Special Mode None Game No. 9 Rogue 9 Adventurer 0 Explorer 0 Win Type - Total 0 Types 0/0/0/0/0/0/0/0/0 Lore% 6 Gallery% 8 Achievement% 6 Wizard Run 0 Options --------- Layout 1 ASCII 0 Keyboard 1 Movement Vi Keybinds 0 Fullscreen 1 Font 32/SmallcapsGlow Map View 50x40 Zoom Use 0% Tactical HUD 0 Map Filters NONE Filters NONE Steam 1 RUN: 61fe35d4-46f9-40d0-84b3-1726fa56df9f